bitfinex-derivatives/quotes_BTCF0:USTF0_20250823
["timestamp","ask_amount","ask_price","bid_price","bid_amount"]
[1755962382258,0.96163,114840.0,114830.0,2.24445966]
[1755962382559,0.96163,114840.0,114830.0,2.32286686]
[1755962383055,0.96163,114840.0,114830.0,2.24445966]
[1755962383251,0.03197,114850.0,114840.0,0.0871069]
[1755962383456,0.03197,114850.0,114840.0,1.84142996]
[1755962383751,0.84137,114850.0,114840.0,1.91983615]
[1755962383950,0.84137,114850.0,114840.0,2.41983615]
[1755962384349,0.87648,114850.0,114840.0,2.41983615]
[1755962384554,0.9517,114850.0,114840.0,2.34142996]
[1755962384852,0.9527,114850.0,114840.0,2.35198977]
[1755962385656,0.9527,114850.0,114840.0,2.35298977]
[1755962387051,0.04662,114850.0,114840.0,2.35298977]
[1755962387252,0.85598,114850.0,114840.0,2.35298977]
[1755962387453,0.04662,114850.0,114840.0,2.35298977]
[1755962387757,0.85598,114850.0,114840.0,2.35298977]
[1755962388961,0.03297,114850.0,114840.0,2.45298977]
[1755962389849,0.1433,114850.0,114840.0,2.45298977]
[1755962390453,0.1433,114850.0,114840.0,2.35298977]
[1755962390854,0.1433,114850.0,114840.0,3.16230977]
[1755962392660,0.1433,114850.0,114840.0,2.35298977]
[1755962398468,0.1433,114850.0,114840.0,2.46263017]
[1755962399167,0.1433,114850.0,114840.0,2.34442996]
[1755962399367,0.1433,114850.0,114840.0,1.84442996]
[1755962400176,0.2303993,114850.0,114840.0,1.84442996]
[1755962400483,0.2303993,114850.0,114840.0,0.8609069]
[1755962400681,0.2303993,114850.0,114840.0,1.84442996]
[1755962401578,0.1433,114850.0,114840.0,1.84442996]
[1755962404581,0.1433,114850.0,114840.0,0.8609069]
[1755962404782,0.1433,114850.0,114840.0,1.95407036]
[1755962405771,0.1433,114850.0,114840.0,0.9705473]
[1755962405975,0.1433,114850.0,114840.0,1.95407036]
[1755962406378,0.089,114850.0,114840.0,1.95407036]
[1755962407677,0.089,114850.0,114840.0,1.84442996]
[1755962409387,0.10888,114850.0,114840.0,1.95401161]
[1755962409585,0.14252,114850.0,114840.0,1.95401161]
[1755962410087,0.10888,114850.0,114840.0,1.95401161]
[1755962410387,0.12264,114850.0,114840.0,1.95401161]
[1755962411085,0.12264,114850.0,114840.0,1.84442996]
[1755962411285,0.089,114850.0,114840.0,1.95405971]
[1755962411486,0.12264,114850.0,114840.0,1.95405971]
[1755962411781,0.14252,114850.0,114840.0,1.84442996]
[1755962412189,0.10888,114850.0,114840.0,1.84442996]
[1755962413090,0.14252,114850.0,114840.0,1.84442996]
[1755962414590,0.14252,114850.0,114840.0,1.95415382]
[1755962414781,0.10888,114850.0,114840.0,1.95415382]
[1755962414985,0.14252,114850.0,114840.0,1.95415382]
[1755962415291,0.14252,114850.0,114840.0,0.97063076]
[1755962415483,0.14252,114850.0,114840.0,1.95415382]
[1755962416892,0.14252,114850.0,114840.0,1.84442996]
[1755962422499,0.14252,114850.0,114840.0,0.8609069]
[1755962422694,0.089,114850.0,114840.0,1.84442996]
[1755962423302,0.04662,114850.0,114840.0,1.84442996]
[1755962424699,0.04547,114850.0,114840.0,1.84442996]
[1755962425099,0.04547,114850.0,114840.0,1.95415382]
[1755962426302,0.04547,114850.0,114840.0,1.84442996]
[1755962426898,0.10177,114850.0,114840.0,1.84442996]
[1755962427102,0.10177,114850.0,114840.0,1.95418529]
[1755962427299,0.06813,114850.0,114840.0,1.95418529]
[1755962428801,0.10083,114850.0,114840.0,1.95418529]
[1755962429000,0.14166,114850.0,114840.0,1.95418529]
[1755962430903,0.08959,114850.0,114840.0,1.95418529]
[1755962431301,0.08959,114850.0,114840.0,0.97066223]
[1755962431602,0.08959,114850.0,114840.0,1.95418529]
[1755962432498,0.08959,114850.0,114840.0,1.84442996]
[1755962433605,0.06813,114850.0,114840.0,1.84442996]
[1755962435705,0.04547,114850.0,114840.0,1.84442996]
[1755962437415,0.06864,114850.0,114840.0,1.84442996]
[1755962438708,0.06864,114850.0,114840.0,0.8609069]
[1755962438902,0.06864,114850.0,114840.0,1.84442996]
[1755962439104,0.04547,114850.0,114840.0,1.84442996]
[1755962441100,0.04547,114850.0,114840.0,1.95420652]
[1755962442514,0.14073,114850.0,114840.0,1.95420652]
[1755962442812,0.10803,114850.0,114840.0,1.95420652]
[1755962443111,0.04547,114850.0,114840.0,1.95420652]
[1755962443306,0.03297,114850.0,114840.0,1.95420652]
[1755962443507,0.001,114850.0,114840.0,2.05420652]
[1755962444311,0.03227,114850.0,114840.0,2.05420652]
[1755962444712,0.03227,114850.0,114840.0,2.07166405]
[1755962448413,0.03227,114850.0,114840.0,2.07162991]
[1755962450407,0.001,114850.0,114840.0,2.07162991]
[1755962450917,0.001,114850.0,114840.0,1.96188749]
[1755962451317,0.001,114850.0,114840.0,2.07162111]
[1755962451816,0.03227,114850.0,114840.0,2.07162111]
[1755962452011,0.03227,114850.0,114840.0,1.08809805]
[1755962452212,0.03227,114850.0,114840.0,2.07162111]
[1755962453414,0.001,114850.0,114840.0,2.07162111]
[1755962453623,0.001,114850.0,114840.0,1.96188749]
[1755962454014,0.001,114850.0,114840.0,2.71188749]
[1755962454920,0.001,114850.0,114840.0,2.82160281]
[1755962455725,0.03227,114850.0,114840.0,2.71188749]
[1755962455921,0.12039,114850.0,114840.0,2.53840443]
[1755962456226,0.12039,114850.0,114840.0,2.71188749]
[1755962456227,0.10771,114850.0,114840.0,2.71188749]
[1755962456431,0.14041,114850.0,114840.0,3.52144749]
[1755962457016,0.08834,114850.0,114840.0,3.52144749]
[1755962458724,0.06832,114850.0,114840.0,3.52144749]
[1755962458924,0.06832,114850.0,114840.0,3.27144749]
[1755962460025,0.04515,114850.0,114840.0,3.27144749]
[1755962460527,0.03227,114850.0,114840.0,3.27144749]
[1755962460930,0.09456956,114870.0,114860.0,0.0870919]
[1755962461124,0.12764956,114870.0,114860.0,1.78881144]
[1755962461625,0.49511386,114870.0,114860.0,1.78881144]
[1755962461825,0.40802956,114870.0,114860.0,1.78881144]
[1755962462826,0.40902956,114870.0,114860.0,1.78881144]
[1755962463416,0.40902956,114870.0,114860.0,1.29704991]
[1755962463623,0.40902956,114870.0,114860.0,1.78881144]
[1755962465826,0.40902956,114870.0,114860.0,1.29704991]
[1755962466025,0.40902956,114870.0,114860.0,1.78881144]
[1755962466225,0.49611376,114870.0,114860.0,1.71045343]
[1755962466933,0.49511376,114870.0,114860.0,1.71045343]
[1755962467131,0.49511376,114870.0,114860.0,1.71145343]
[1755962467526,0.49511376,114870.0,114860.0,1.19804944]
[1755962467724,0.24511376,114870.0,114860.0,1.32901097]
[1755962468334,0.24611376,114870.0,114860.0,1.33201097]
[1755962469328,0.24611376,114870.0,114860.0,0.84024944]
[1755962469525,0.49611376,114870.0,114860.0,1.33201097]
[1755962470034,0.49611376,114870.0,114860.0,1.25365343]
[1755962470428,0.49611376,114870.0,114860.0,1.33201097]
[1755962470629,0.49611376,114870.0,114860.0,1.25365343]
[1755962471130,0.49611376,114870.0,114860.0,0.84024944]
[1755962471332,0.49611376,114870.0,114860.0,1.33201097]
[1755962472636,0.12594956,114870.0,114860.0,1.69281097]
[1755962472839,0.08563956,114870.0,114860.0,1.79281097]
[1755962473039,0.06334956,114870.0,114860.0,1.79281097]
[1755962474138,0.06334956,114870.0,114860.0,1.71445343]
[1755962474537,0.06334956,114870.0,114860.0,1.79281097]
[1755962475944,0.06334956,114870.0,114860.0,1.71445343]
[1755962476242,0.05095956,114870.0,114860.0,1.71445343]
[1755962477141,0.05095956,114870.0,114860.0,1.723034]
[1755962477343,0.05095956,114870.0,114860.0,1.83273796]
[1755962479252,0.05095956,114870.0,114860.0,1.82415739]
[1755962479552,0.05095956,114870.0,114860.0,1.71445343]
[1755962480449,0.06334956,114870.0,114860.0,1.71445343]
[1755962481155,0.06334956,114870.0,114860.0,1.72327018]
[1755962481355,0.06334956,114870.0,114860.0,1.83297414]
[1755962482047,0.05095956,114870.0,114860.0,1.83297414]
[1755962482250,0.05095956,114870.0,114860.0,1.82415739]
[1755962482448,0.06334956,114870.0,114860.0,1.82415739]
[1755962482855,0.08563956,114870.0,114860.0,1.82415739]
[1755962485257,0.11871956,114870.0,114860.0,1.82415739]
[1755962485451,0.15902956,114870.0,114860.0,1.82415739]
[1755962487954,0.12594956,114870.0,114860.0,1.82415739]
[1755962488160,0.16068956,114870.0,114860.0,1.82415739]
[1755962488947,0.16068956,114870.0,114860.0,1.902502]
[1755962489149,0.16068956,114870.0,114860.0,1.79279804]
[1755962489446,0.14111,114870.0,114860.0,1.79279804]
[1755962490052,0.03138,114870.0,114860.0,1.79279804]
[1755962490254,0.001,114870.0,114860.0,1.79279804]
[1755962490558,0.001,114870.0,114860.0,3.26649496]
[1755962491061,0.94646769,114890.0,114880.0,0.0870765]
[1755962491266,0.85939879,114890.0,114880.0,2.10219956]
[1755962492857,0.86039879,114890.0,114880.0,2.10219956]
[1755962493057,0.86039879,114890.0,114880.0,2.18047282]
[1755962493868,0.87281879,114890.0,114880.0,2.18047282]
[1755962494257,0.86039879,114890.0,114880.0,1.68871129]
[1755962494764,0.86039879,114890.0,114880.0,2.18047282]
[1755962495565,0.05087879,114890.0,114880.0,2.28047282]
[1755962495765,0.05087879,114890.0,114880.0,2.20219956]
[1755962497657,0.05087879,114890.0,114880.0,3.01175956]
[1755962498165,0.05087879,114890.0,114880.0,3.08995118]
[1755962498352,0.05087879,114890.0,114880.0,3.01175956]
[1755962498858,0.05087879,114890.0,114880.0,3.12146352]
[1755962499258,0.05087879,114890.0,114880.0,3.02019133]
[1755962499650,0.05087879,114890.0,114880.0,3.12989529]
[1755962501256,0.02015879,114890.0,114880.0,3.22989529]
[1755962501859,0.02015879,114890.0,114880.0,3.97989529]
[1755962502065,0.02015879,114890.0,114880.0,3.87019133]
[1755962502565,0.02015879,114890.0,114880.0,3.97989529]
[1755962503266,0.05087879,114890.0,114880.0,3.97989529]
[1755962503568,0.03172,114890.0,114880.0,3.99752982]
[1755962503759,0.001,114890.0,114880.0,3.99752982]
[1755962503961,0.03172,114890.0,114880.0,3.99720982]
[1755962504663,0.001,114890.0,114880.0,3.99720982]
[1755962507368,0.03172,114890.0,114880.0,3.99720982]
[1755962508068,0.001,114890.0,114880.0,3.96559827]
[1755962508263,0.001,114890.0,114880.0,3.88750586]
[1755962509062,0.001,114890.0,114880.0,3.96558887]
[1755962509270,0.001,114890.0,114880.0,3.88750586]
[1755962510568,0.001,114890.0,114880.0,3.63750586]
[1755962512872,0.03172,114890.0,114880.0,3.63750586]
[1755962519583,0.03172,114890.0,114880.0,3.71558141]
[1755962520382,0.03172,114890.0,114880.0,3.63750586]
[1755962522390,0.03172,114890.0,114880.0,3.71570873]
[1755962522689,0.03172,114890.0,114880.0,3.63750586]
[1755962524988,1e-07,114890.0,114880.0,3.63750586]
[1755962525184,0.91617,114920.0,114910.0,0.1070139]
[1755962525486,0.91617,114920.0,114910.0,1.76037543]
[1755962526289,0.10705,114920.0,114910.0,1.76037543]
[1755962526888,0.10705,114920.0,114910.0,1.83147149]
[1755962527194,0.1369,114920.0,114910.0,1.83147149]
[1755962528486,0.1369,114920.0,114910.0,1.83247149]
[1755962528883,0.1379,114920.0,114910.0,1.83247149]
[1755962529382,0.1379,114920.0,114910.0,1.91071271]
[1755962529579,0.1379,114920.0,114910.0,1.92668271]
[1755962532285,0.1379,114920.0,114910.0,1.35667996]
[1755962532587,0.1379,114920.0,114910.0,1.92671104]
[1755962533284,0.1379,114920.0,114910.0,1.84844149]
[1755962534292,0.03085,114920.0,114910.0,1.84844149]
[1755962534691,0.04348,114920.0,114910.0,1.84844149]
[1755962534887,0.11767,114920.0,114910.0,1.84844149]
[1755962535205,0.1379,114920.0,114910.0,1.84844149]
[1755962535384,0.1379,114920.0,114910.0,1.84944149]
[1755962535785,0.1369,114920.0,114910.0,1.85044149]
[1755962536390,0.02985,114920.0,114910.0,1.85044149]
[1755962536586,0.04248,114920.0,114910.0,1.96014545]
[1755962537586,0.06439,114920.0,114910.0,1.96014545]
[1755962537898,0.02985,114920.0,114910.0,1.96014545]
[1755962539098,0.07146598,114930.0,114920.0,0.1070061]
[1755962539099,0.10202598,114930.0,114920.0,0.1070061]
[1755962539296,0.15608598,114930.0,114920.0,1.26553763]
[1755962539700,0.1369,114930.0,114920.0,1.47524159]
[1755962539897,0.1369,114930.0,114920.0,1.48369909]
[1755962540401,0.10407,114930.0,114920.0,1.97546062]
[1755962540592,0.04348,114930.0,114920.0,1.86575666]
[1755962541198,0.04348,114930.0,114920.0,0.8822336]
[1755962541392,0.04348,114930.0,114920.0,1.86575666]
[1755962541795,0.03085,114930.0,114920.0,1.86575666]
[1755962542190,0.03085,114930.0,114920.0,1.97546062]
[1755962542686,0.03085,114930.0,114920.0,1.86575666]
[1755962542902,0.03085,114930.0,114920.0,1.97546062]
[1755962543101,0.03085,114930.0,114920.0,2.07546062]
[1755962543503,0.03085,114930.0,114920.0,2.15366946]
[1755962543698,0.03085,114930.0,114920.0,2.0439655]
[1755962544098,0.03085,114930.0,114920.0,1.96575666]
[1755962544297,0.04348,114930.0,114920.0,2.04395356]
[1755962544904,0.001,114930.0,114920.0,2.29395356]
[1755962545203,0.001,114930.0,114920.0,2.21575666]
[1755962546502,0.001,114930.0,114920.0,2.32546062]
[1755962547605,0.03093,114930.0,114920.0,2.32546062]
[1755962549006,0.001,114930.0,114920.0,2.32546062]
[1755962549999,0.001,114930.0,114920.0,2.07546062]
[1755962550198,0.1882359,114960.0,114950.0,0.1215993]
[1755962550404,0.08239,114960.0,114950.0,1.72496083]
[1755962550795,0.11605,114960.0,114950.0,1.72496083]
[1755962550996,0.14350095,114960.0,114950.0,1.72496083]
[1755962551703,0.14650095,114960.0,114950.0,1.72496083]
[1755962551903,0.13788,114960.0,114950.0,1.72496083]
[1755962552105,0.06702,114960.0,114950.0,1.72496083]
[1755962552403,0.04634,114960.0,114950.0,1.72496083]
[1755962552703,0.04634,114960.0,114950.0,1.80311022]
[1755962552898,0.1932359,114960.0,114950.0,1.70311022]
[1755962553098,0.2268959,114960.0,114950.0,1.52380153]
[1755962553298,0.2268959,114960.0,114950.0,1.60195092]
[1755962553692,0.96945743,114960.0,114950.0,1.08974939]
[1755962553891,0.96945743,114960.0,114950.0,0.7378234]
[1755962554101,0.96945743,114960.0,114950.0,0.6508]
[1755962554304,0.96945743,114960.0,114950.0,0.7378234]
[1755962554802,0.48625904,114960.0,114950.0,0.7378234]
[1755962555002,0.48625904,114960.0,114950.0,1.22958493]
[1755962555003,0.97802057,114960.0,114950.0,1.22958493]
[1755962556406,0.48625904,114960.0,114950.0,0.7378234]
[1755962562513,0.48625904,114960.0,114950.0,0.7582634]
[1755962562705,0.23545904,114960.0,114950.0,1.1332034]
[1755962563209,0.23545904,114960.0,114950.0,1.21135279]
[1755962564815,0.23545904,114960.0,114950.0,1.1332034]
[1755962565110,0.16459904,114960.0,114950.0,1.62402044]
[1755962565510,0.23545904,114960.0,114950.0,1.1332034]
[1755962565908,0.23545904,114960.0,114950.0,1.21135279]
[1755962567010,0.23545904,114960.0,114950.0,1.31135279]
[1755962567214,0.16459904,114960.0,114950.0,1.31135279]
[1755962567503,0.86274314,114960.0,114950.0,1.80216983]
[1755962567905,0.94975904,114960.0,114950.0,1.80216983]
[1755962568722,0.94975904,114960.0,114950.0,1.81065876]
[1755962569723,0.94975904,114960.0,114950.0,1.31135279]
[1755962570019,0.94975904,114960.0,114950.0,1.80216983]
[1755962571120,0.94975904,114960.0,114950.0,1.31135279]
[1755962571321,0.94975904,114960.0,114950.0,1.80216983]
[1755962571616,0.94975904,114960.0,114950.0,1.8337244]
[1755962571825,1.00609904,114960.0,114950.0,1.34290736]
[1755962572121,1.02446904,114960.0,114950.0,1.2332034]
[1755962573024,1.02446904,114960.0,114950.0,1.1190634]
[1755962573414,1.02446904,114960.0,114950.0,1.19729933]
[1755962573620,1.02446904,114960.0,114950.0,1.21143933]
[1755962574122,1.02446904,114960.0,114950.0,1.1332034]
[1755962574324,1.02446904,114960.0,114950.0,1.2332034]
[1755962575817,1.02446904,114960.0,114950.0,1.2190634]
[1755962576525,1.02446904,114960.0,114950.0,1.1190634]
[1755962579228,1.02446904,114960.0,114950.0,1.2321434]
[1755962579926,1.02446904,114960.0,114950.0,1.72296044]
[1755962580117,1.01146904,114960.0,114950.0,1.72296044]
[1755962580330,1.04612904,114960.0,114950.0,1.72296044]
[1755962580744,1.04612904,114960.0,114950.0,1.80120234]
[1755962581039,1.0375659,114960.0,114950.0,1.80120234]
[1755962581635,1.0375659,114960.0,114950.0,1.3103853]
[1755962581837,1.0375659,114960.0,114950.0,1.80120234]
[1755962582040,1.0029059,114960.0,114950.0,1.72296044]
[1755962582235,0.9822459,114960.0,114950.0,1.72296044]
[1755962582932,1.0169059,114960.0,114950.0,1.72296044]
[1755962583343,1.0169059,114960.0,114950.0,1.2321434]
[1755962583534,1.0169059,114960.0,114950.0,1.72296044]
[1755962583735,1.0169059,114960.0,114950.0,1.8326644]
[1755962585740,1.0169059,114960.0,114950.0,1.72296044]
[1755962585946,0.95055,114960.0,114950.0,1.72296044]
[1755962587042,0.95055,114960.0,114950.0,1.8326644]
[1755962587237,0.95055,114960.0,114950.0,1.72296044]
[1755962587837,0.94755,114960.0,114950.0,1.72296044]
[1755962588044,1.0355657,114960.0,114950.0,1.72696044]
[1755962588543,1.0335657,114960.0,114950.0,1.8396644]
[1755962589543,1.0335657,114960.0,114950.0,1.8396643]
[1755962589843,1.0335657,114960.0,114950.0,1.34884726]
[1755962590238,1.0335657,114960.0,114950.0,1.8396643]
[1755962590444,1.0335657,114960.0,114950.0,1.83955249]
[1755962597045,1.0335657,114960.0,114950.0,1.33576726]
[1755962597239,1.52507093,114960.0,114950.0,0.40670396]
[1755962597439,1.77507093,114960.0,114950.0,0.37528739]
[1755962597845,1.2843657,114960.0,114950.0,0.37528739]
[1755962598045,1.2835657,114960.0,114950.0,0.73608739]
[1755962598352,1.77427093,114960.0,114950.0,1.22679262]
[1755962598546,1.77427093,114960.0,114950.0,0.73608739]
[1755962599543,1.2835657,114960.0,114950.0,0.73608739]
[1755962599749,1.77427093,114960.0,114950.0,0.73608739]
[1755962600147,1.77427093,114960.0,114950.0,0.37528739]
[1755962600351,1.2835657,114960.0,114950.0,0.297]
[1755962601946,1.77442159,114960.0,114950.0,0.297]
[1755962602145,1.2835657,114960.0,114950.0,0.37528739]
[1755962602942,1.2835657,114960.0,114950.0,0.73608739]
[1755962604453,1.2835657,114960.0,114950.0,0.6578]
[1755962604652,1.2835657,114960.0,114950.0,0.6775]
[1755962607548,1.2835657,114960.0,114950.0,0.75578739]
[1755962607746,1.2835657,114960.0,114950.0,0.6775]
[1755962608360,1.2835657,114960.0,114950.0,0.6578]
[1755962610047,1.0335657,114960.0,114950.0,0.6578]
[1755962611454,0.9635657,114960.0,114950.0,0.67771]
[1755962611751,0.9753757,114960.0,114950.0,0.67771]
[1755962613252,0.9753757,114960.0,114950.0,0.31691]
[1755962613455,1.0032457,114960.0,114950.0,0.31691]
[1755962613754,1.0032457,114960.0,114950.0,0.67771]
[1755962613958,1.0032457,114960.0,114950.0,0.31691]
[1755962616450,1.0032457,114960.0,114950.0,0.67771]
[1755962616655,1.0032457,114960.0,114950.0,0.31691]
[1755962616856,1.0032457,114960.0,114950.0,0.67771]
[1755962617046,1.0032457,114960.0,114950.0,0.31691]
[1755962617451,1.0032457,114960.0,114950.0,0.67771]
[1755962617652,1.0032457,114960.0,114950.0,0.31691]
[1755962618648,1.0032457,114960.0,114950.0,0.297]
[1755962618846,1.49410159,114960.0,114950.0,0.297]
[1755962619648,1.0032457,114960.0,114950.0,0.297]
[1755962620462,2.59590198,114960.0,114950.0,0.297]
[1755962620659,2.59590198,114960.0,114950.0,0.24387]
[1755962622453,0.1058409,114940.0,114930.0,0.49007739]
[1755962622653,1.5359384,114940.0,114930.0,0.78007739]
[1755962622860,1.5359384,114940.0,114930.0,0.73572]
[1755962623368,1.04501026,114940.0,114930.0,0.73572]
[1755962623666,1.04501026,114940.0,114930.0,0.81400739]
[1755962623667,1.5359384,114940.0,114930.0,0.81400739]
[1755962623859,1.5359384,114940.0,114930.0,0.83391739]
[1755962624162,1.5369384,114940.0,114930.0,0.83791739]
[1755962624362,1.04601026,114940.0,114930.0,0.83791739]
[1755962624562,1.04601026,114940.0,114930.0,0.75963]
[1755962624862,1.04601026,114940.0,114930.0,0.69007]
[1755962625061,1.04601026,114940.0,114930.0,0.69207]
[1755962625262,1.04601026,114940.0,114930.0,0.69007]
[1755962626264,1.04601026,114940.0,114930.0,0.724]
[1755962626464,1.04601026,114940.0,114930.0,0.37992]
[1755962629766,1.04601026,114940.0,114930.0,0.34599]
[1755962629962,1.04601026,114940.0,114930.0,0.32927]
[1755962630164,1.04601026,114940.0,114930.0,0.3632]
[1755962630563,1.04601026,114940.0,114930.0,0.37992]
[1755962632971,1.04601026,114940.0,114930.0,0.39983]
[1755962636968,1.04601026,114940.0,114930.0,0.42811]
[1755962638175,1.04601026,114940.0,114930.0,0.39983]
[1755962638469,1.04601026,114940.0,114930.0,0.32927]
[1755962639070,1.04601026,114940.0,114930.0,0.36209]
[1755962639270,1.04601026,114940.0,114930.0,0.38065]
[1755962640969,1.04601026,114940.0,114930.0,0.481901]
[1755962641575,1.04601026,114940.0,114930.0,0.463341]
[1755962642772,1.04601026,114940.0,114930.0,0.481901]
[1755962644276,1.537056,114940.0,114930.0,0.481901]
[1755962644677,1.537056,114940.0,114930.0,0.501591]
[1755962645971,1.04601026,114940.0,114930.0,0.501591]
[1755962646171,1.537056,114940.0,114930.0,0.501591]
[1755962647379,1.537056,114940.0,114930.0,0.57987839]
[1755962648377,1.897856,114940.0,114930.0,0.39131839]
[1755962648581,1.897856,114940.0,114930.0,0.313031]
[1755962648775,2.147856,114940.0,114930.0,0.313031]
[1755962658891,2.147856,114940.0,114930.0,0.2849032]
[1755962659399,2.147856,114940.0,114930.0,0.2587289]
[1755962659698,2.147856,114940.0,114930.0,0.416251]
[1755962659894,2.147856,114940.0,114930.0,0.3841562]
[1755962660094,2.147856,114940.0,114930.0,0.328002]
[1755962660399,2.147856,114940.0,114930.0,0.2667229]
[1755962660700,2.147856,114940.0,114930.0,0.185559]
[1755962661093,0.1403658,114920.0,114910.0,0.21301739]
[1755962661290,1.51777154,114920.0,114910.0,0.52301739]
[1755962662399,1.5276107,114920.0,114910.0,0.52801739]
[1755962662700,1.5276107,114920.0,114910.0,0.52721739]
[1755962663001,1.5286107,114920.0,114910.0,0.53021739]
[1755962663498,1.5286107,114920.0,114910.0,0.63146839]
[1755962663893,1.5276107,114920.0,114910.0,0.552181]
[1755962664391,2.39876874,114920.0,114910.0,0.471791]
[1755962664598,2.39776874,114920.0,114910.0,0.466791]
[1755962664796,2.39876874,114920.0,114910.0,0.500611]
[1755962665695,2.39776874,114920.0,114910.0,0.499611]
[1755962665896,2.39876874,114920.0,114910.0,0.500611]
[1755962666493,2.39876874,114920.0,114910.0,0.519171]
[1755962666693,2.39876874,114920.0,114910.0,0.517171]
[1755962666895,2.39876874,114920.0,114910.0,0.518171]
[1755962667904,1.41667726,114920.0,114910.0,0.518171]
[1755962668101,2.39876874,114920.0,114910.0,0.518171]
[1755962668506,2.47006056,114920.0,114910.0,0.518171]
[1755962669907,1.48796908,114920.0,114910.0,0.518171]
[1755962670105,2.47006056,114920.0,114910.0,0.518171]
[1755962671605,1.48796908,114920.0,114910.0,0.518171]
[1755962671798,1.97901482,114920.0,114910.0,0.518171]
[1755962675309,2.47006056,114920.0,114910.0,0.499611]
[1755962677610,2.47006056,114920.0,114910.0,0.447101]
[1755962680718,4.12514056,114920.0,114910.0,0.447101]
[1755962681505,4.12514056,114920.0,114910.0,0.480831]
[1755962683210,4.12514056,114920.0,114910.0,0.447101]
[1755962686308,3.14304908,114920.0,114910.0,0.447101]
[1755962686515,4.12514056,114920.0,114910.0,0.447101]
[1755962686714,4.12514056,114920.0,114910.0,0.480831]
[1755962688221,3.14304908,114920.0,114910.0,0.480831]
[1755962688421,4.12514056,114920.0,114910.0,0.480831]
[1755962689023,3.63409482,114920.0,114910.0,0.480831]
[1755962696129,3.63409482,114920.0,114910.0,0.447101]
[1755962696428,4.12514056,114920.0,114910.0,0.447101]
[1755962700827,3.63409482,114920.0,114910.0,0.447101]
[1755962701133,3.63409482,114920.0,114910.0,0.482021]
[1755962701526,3.14304908,114920.0,114910.0,0.482021]
[1755962701730,3.63409482,114920.0,114910.0,0.482021]
[1755962702318,2.82705482,114920.0,114910.0,0.447101]
[1755962702630,3.63365482,114920.0,114910.0,0.551111]
[1755962703037,3.14260908,114920.0,114910.0,0.551111]
[1755962703228,3.63365482,114920.0,114910.0,0.551111]
[1755962704731,1.97857482,114920.0,114910.0,0.551111]
[1755962704933,1.48752908,114920.0,114910.0,0.551111]
[1755962705123,1.97857482,114920.0,114910.0,0.551111]
[1755962705318,1.97857482,114920.0,114910.0,0.520971]
[1755962706722,2.46962056,114920.0,114910.0,0.413251]
[1755962707738,1.48752908,114920.0,114910.0,0.413251]
[1755962708124,2.46962056,114920.0,114910.0,0.413251]
[1755962713934,2.71962056,114920.0,114910.0,0.413251]
[1755962714136,2.71962056,114920.0,114910.0,0.393951]
[1755962714836,2.71962056,114920.0,114910.0,0.2265401]
[1755962715037,2.71962056,114920.0,114910.0,0.433251]
[1755962715536,2.71962056,114920.0,114910.0,0.0246114]
[1755962715733,0.1199785,114890.0,114880.0,0.51658739]
[1755962715928,1.48541411,114890.0,114880.0,0.45339739]
[1755962716137,1.84621411,114890.0,114880.0,0.35492]
[1755962716939,1.84721411,114890.0,114880.0,0.35992]
[1755962717139,1.84821411,114890.0,114880.0,0.36392]
[1755962717837,1.84821411,114890.0,114880.0,0.329]
[1755962718440,1.84721411,114890.0,114880.0,0.324]
[1755962718739,1.84721411,114890.0,114880.0,0.322]
[1755962719040,1.84621411,114890.0,114880.0,0.422251]
[1755962719243,1.84821411,114890.0,114880.0,0.423251]
[1755962719437,1.84821411,114890.0,114880.0,0.422251]
[1755962722347,2.33925985,114890.0,114880.0,0.422251]
[1755962725853,2.33925985,114890.0,114880.0,0.3647692]
[1755962726039,2.58925985,114890.0,114880.0,0.3647692]
[1755962727248,2.58925985,114890.0,114880.0,0.35998658]
[1755962727944,2.58925985,114890.0,114880.0,0.35583857]
[1755962728146,2.58925985,114890.0,114880.0,0.11738616]
[1755962728350,0.1557137,114870.0,114860.0,0.09235709]
[1755962728537,3.49015867,114870.0,114860.0,0.36807]
[1755962729042,3.49015867,114870.0,114860.0,0.4027]
[1755962729744,3.49115867,114870.0,114860.0,0.4057]
[1755962730255,3.49115867,114870.0,114860.0,0.4077]
[1755962731360,3.49115867,114870.0,114860.0,0.35114]
[1755962731559,3.49115867,114870.0,114860.0,0.452391]
[1755962732361,3.49115867,114870.0,114860.0,0.487021]
[1755962732961,3.49115867,114870.0,114860.0,0.452391]
[1755962733266,3.49115867,114870.0,114860.0,0.487021]
[1755962733556,3.49115867,114870.0,114860.0,0.452391]
[1755962735362,3.49115867,114870.0,114860.0,0.418421]
[1755962737263,3.49115867,114870.0,114860.0,0.386251]
[1755962738867,3.49115867,114870.0,114860.0,0.3623343]
[1755962739163,3.74115867,114870.0,114860.0,0.1754394]
[1755962739368,0.1573388,114850.0,114840.0,0.12019]
[1755962739564,2.32629654,114850.0,114840.0,0.44019]
[1755962739866,2.32629654,114850.0,114840.0,0.46212]
[1755962740271,2.33496907,114850.0,114840.0,0.40807]
[1755962740469,2.33396907,114850.0,114840.0,0.4427]
[1755962742173,2.33796907,114850.0,114840.0,0.40907]
[1755962742568,2.33796907,114850.0,114840.0,0.544951]
[1755962742969,2.33796907,114850.0,114840.0,0.510321]
[1755962743269,2.65848207,114850.0,114840.0,0.454421]
[1755962743473,2.65848207,114850.0,114840.0,0.422251]
[1755962743877,3.01928207,114850.0,114840.0,0.3466794]
[1755962744279,3.01928207,114850.0,114840.0,0.3168065]
[1755962744579,0.1214562,114840.0,114830.0,0.03217]
[1755962744769,1.50023768,114840.0,114830.0,0.33217]
[1755962745168,1.50023768,114840.0,114830.0,0.35389]
[1755962745377,1.50023768,114840.0,114830.0,0.36614]
[1755962745777,1.50423768,114840.0,114830.0,0.36714]
[1755962745979,1.50423768,114840.0,114830.0,0.40177]
[1755962746284,1.0141993,114840.0,114830.0,0.40177]
[1755962747281,1.1587993,114840.0,114830.0,0.40177]
[1755962747780,1.1587993,114840.0,114830.0,0.468391]
[1755962748181,1.1587993,114840.0,114830.0,0.524951]
[1755962749784,0.6667462,114840.0,114830.0,0.524951]
[1755962749986,1.1587993,114840.0,114830.0,0.524951]
[1755962750778,1.1587993,114840.0,114830.0,0.544371]
[1755962752787,1.9481293,114840.0,114830.0,0.544371]
[1755962754487,1.96920642,114840.0,114830.0,0.544371]
[1755962754687,1.9481293,114840.0,114830.0,0.544371]
[1755962754987,0.9292562,114840.0,114830.0,0.544371]
[1755962755674,1.4603193,114840.0,114830.0,0.544371]
[1755962756888,1.4424893,114840.0,114830.0,0.544371]